bitfinex-derivatives/quotes_BTCF0:USTF0_20250915
["timestamp","ask_amount","ask_price","bid_price","bid_amount"]
[1757937688341,0.30972367,115110.0,115100.0,0.03652]
[1757937688632,0.96868544,115110.0,115100.0,0.40132]
[1757937688838,0.94621823,115110.0,115100.0,0.40132]
[1757937689030,0.29025646,115110.0,115100.0,0.40132]
[1757937689231,0.15573823,115110.0,115100.0,0.40332]
[1757937689431,0.22619565,115110.0,115100.0,0.40332]
[1757937690138,0.23483017,115110.0,115100.0,0.40132]
[1757937690336,0.23483017,115110.0,115100.0,0.40332]
[1757937690839,0.3693484,115110.0,115100.0,0.40332]
[1757937692741,1.1598284,115110.0,115100.0,0.40332]
[1757937693135,1.93927278,115110.0,115100.0,0.006]
[1757937693538,0.00737,115100.0,115070.0,0.3737]
[1757937693730,0.29025646,115080.0,115070.0,0.39639]
[1757937694337,1.08077646,115080.0,115070.0,0.39639]
[1757937694637,0.29025646,115080.0,115070.0,0.39639]
[1757937694941,1.06777646,115080.0,115070.0,0.39639]
[1757937695136,1.06777646,115080.0,115070.0,0.39739]
[1757937696842,1.43894646,115080.0,115070.0,0.02369]
[1757937697242,1.43894646,115080.0,115070.0,0.001]
[1757937697243,1.82346469,115080.0,115070.0,0.001]
[1757937697542,1.84585792,115080.0,115070.0,0.001]
[1757937698345,1.06833792,115080.0,115070.0,0.001]
[1757937698546,1.85889792,115080.0,115070.0,0.001]
[1757937698745,0.93381969,115080.0,115070.0,0.02369]
[1757937698945,1.72437969,115080.0,115070.0,0.02369]
[1757937699443,1.60889792,115080.0,115070.0,0.001]
[1757937700042,0.81833792,115080.0,115070.0,0.001]
[1757937700340,1.60897792,115080.0,115070.0,0.02369]
[1757937701748,1.47474867,115080.0,115070.0,0.02369]
[1757937703848,1.47474867,115080.0,115070.0,0.001]
[1757937707052,1.47478867,115080.0,115070.0,0.02369]
[1757937707948,1.20546323,115080.0,115070.0,0.02369]
[1757937708250,1.47478867,115080.0,115070.0,0.02369]
[1757937708652,1.72478867,115080.0,115070.0,0.001]
[1757937708850,1.85945139,115080.0,115070.0,0.001]
[1757937709446,1.72478867,115080.0,115040.0,0.3737]
[1757937709642,0.15588272,115050.0,115040.0,0.39639]
[1757937709850,0.94660272,115050.0,115040.0,0.39639]
[1757937710050,0.15588272,115050.0,115040.0,0.39639]
[1757937711053,0.15588272,115050.0,115040.0,0.39839]
[1757937711543,0.93573211,115060.0,115050.0,0.03559]
[1757937711740,0.94914958,115060.0,115050.0,0.03559]
[1757937712750,0.94914958,115060.0,115050.0,0.03859]
[1757937713149,0.95788356,115060.0,115050.0,0.03859]
[1757937713545,0.18696356,115060.0,115050.0,0.03859]
[1757937715850,0.19433356,115060.0,115050.0,0.03859]
[1757937716056,0.19433356,115060.0,115050.0,0.02569]
[1757937716553,0.19433356,115060.0,115050.0,0.02369]
[1757937716752,0.19433356,115060.0,115050.0,0.02469]
[1757937717255,0.26473819,115060.0,115050.0,0.02469]
[1757937717456,0.26473819,115060.0,115050.0,0.02369]
[1757937718055,0.26473819,115060.0,115050.0,0.03653]
[1757937718355,0.25736819,115060.0,115050.0,0.03653]
[1757937719560,0.26473819,115060.0,115050.0,0.02369]
[1757937721455,0.13007547,115060.0,115050.0,0.02369]
[1757937721659,0.2959964,115060.0,115050.0,0.02369]
[1757937721854,1.0797864,115060.0,115050.0,0.03653]
[1757937723156,1.12669487,115060.0,115050.0,0.03653]
[1757937723355,1.13406487,115060.0,115050.0,0.03653]
[1757937723554,1.13406487,115060.0,115050.0,0.02369]
[1757937726058,1.12669487,115060.0,115050.0,0.03653]
[1757937726357,0.33553487,115060.0,115050.0,0.03653]
[1757937726754,1.12705487,115060.0,115050.0,0.03653]
[1757937727156,1.09579666,115060.0,115050.0,0.03653]
[1757937727353,1.09579666,115060.0,115050.0,0.03553]
[1757937727958,1.09779666,115060.0,115050.0,0.03553]
[1757937728158,1.12904966,115060.0,115050.0,0.03553]
[1757937728352,0.33752966,115060.0,115050.0,0.03553]
[1757937728553,1.12892966,115060.0,115050.0,0.03553]
[1757937728957,0.33752966,115060.0,115050.0,0.03553]
[1757937729160,1.12888966,115060.0,115050.0,0.03553]
[1757937729357,1.08198761,115060.0,115050.0,0.03553]
[1757937730052,1.08935761,115060.0,115050.0,0.03553]
[1757937730450,1.13606994,115060.0,115050.0,0.03553]
[1757937731259,1.13606994,115060.0,115050.0,0.02269]
[1757937734055,1.10481694,115060.0,115050.0,0.02269]
[1757937735158,1.13608012,115060.0,115050.0,0.02269]
[1757937739454,1.08917807,115060.0,115050.0,0.02269]
[1757937740360,1.08917807,115060.0,115050.0,0.03553]
[1757937740663,1.09017807,115060.0,115050.0,0.03553]
[1757937740862,1.08817807,115060.0,115050.0,0.03553]
[1757937741064,1.09017807,115060.0,115050.0,0.03553]
[1757937741265,0.26755489,115060.0,115050.0,0.03553]
[1757937741458,1.06007489,115060.0,115050.0,0.03553]
[1757937743769,0.26755489,115060.0,115050.0,0.03553]
[1757937743955,1.05999489,115060.0,115050.0,0.03553]
[1757937747572,1.05999489,115060.0,115050.0,0.02269]
[1757937749968,1.05975489,115060.0,115050.0,0.03656]
[1757937750771,1.05238489,115060.0,115050.0,0.03656]
[1757937751168,0.03313,115050.0,115040.0,0.39552]
[1757937751368,0.324619,115050.0,115040.0,0.39552]
[1757937752279,0.30245544,115050.0,115040.0,0.39552]
[1757937752978,0.16779272,115050.0,115040.0,0.39552]
[1757937753182,0.15742272,115050.0,115040.0,0.39552]
[1757937753679,0.94946272,115050.0,115040.0,0.39552]
[1757937754274,0.95046272,115050.0,115040.0,0.39552]
[1757937754785,0.95046272,115050.0,115040.0,0.41557765]
[1757937755582,0.8158,115050.0,115040.0,0.41557765]
[1757937755782,0.95046272,115050.0,115040.0,0.41557765]
[1757937757779,0.02376,115050.0,115040.0,0.41557765]
[1757937757979,0.91058272,115050.0,115040.0,0.41557765]
[1757937758278,0.15842272,115050.0,115040.0,0.41557765]
[1757937758782,0.001,115050.0,115040.0,0.80024037]
[1757937758973,0.001,115050.0,115040.0,0.98024037]
[1757937759482,0.001,115050.0,115040.0,2.18208037]
[1757937759683,0.001,115050.0,115040.0,2.44098738]
[1757937759874,0.001,115050.0,115040.0,1.60098738]
[1757937760078,0.001,115050.0,115040.0,2.16098738]
[1757937760575,0.95790272,115080.0,115070.0,0.03569]
[1757937760778,0.97991867,115080.0,115070.0,0.03569]
[1757937761487,0.61911867,115080.0,115070.0,0.03569]
[1757937761988,0.03313,115060.0,115050.0,0.02182]
[1757937762288,0.18979839,115060.0,115050.0,0.02182]
[1757937762488,0.98171839,115060.0,115050.0,0.03569]
[1757937762689,0.97134839,115060.0,115050.0,0.03569]
[1757937763781,1.10604927,115060.0,115050.0,0.03569]
[1757937764287,1.10704927,115060.0,115050.0,0.03569]
[1757937764988,1.10804927,115060.0,115050.0,0.03569]
[1757937772495,1.11841927,115060.0,115050.0,0.03569]
[1757937774497,1.11841927,115060.0,115050.0,0.02182]
[1757937778493,0.31612927,115060.0,115050.0,0.0353]
[1757937778694,1.10724927,115060.0,115050.0,0.0353]
[1757937780600,0.83788567,115060.0,115050.0,0.0353]
[1757937780802,1.10724927,115060.0,115050.0,0.0353]
[1757937783610,0.83788567,115060.0,115050.0,0.0353]
[1757937783902,1.10724927,115060.0,115050.0,0.0353]
[1757937784403,1.11761927,115060.0,115050.0,0.02182]
[1757937785404,0.04676567,115060.0,115050.0,0.02182]
[1757937785699,0.04718567,115060.0,115050.0,0.7807818]
[1757937785905,0.18186747,115060.0,115050.0,0.7807818]
[1757937786307,0.2945436,115060.0,115050.0,0.7807818]
[1757937786505,0.2945436,115060.0,115050.0,0.6461]
[1757937790208,0.02518,115060.0,115050.0,0.6461]
[1757937790410,0.2945436,115060.0,115050.0,0.6461]
[1757937792408,0.2945436,115060.0,115050.0,0.0353]
[1757937792608,0.32690205,115060.0,115040.0,0.39375765]
[1757937792809,0.1578618,115050.0,115040.0,0.41697765]
[1757937796114,0.1588618,115050.0,115040.0,0.41697765]
[1757937800814,0.1588618,115050.0,115040.0,0.55165945]
[1757937801015,0.02418,115050.0,115040.0,0.55165945]
[1757937801216,0.1588618,115050.0,115040.0,0.55165945]
[1757937807516,0.1588618,115050.0,115040.0,0.41697765]
[1757937807715,0.1588618,115050.0,115040.0,0.55165945]
[1757937808226,0.1588618,115050.0,115040.0,0.41697765]
[1757937808518,0.1588618,115050.0,115040.0,0.55165945]
[1757937808723,0.3009136,115050.0,115040.0,0.41697765]
[1757937808914,0.3229014,115050.0,115040.0,0.41697765]
[1757937810322,0.01168,115040.0,115030.0,0.39603]
[1757937810518,0.3249914,115040.0,115030.0,0.39603]
[1757937810822,0.31330873,115040.0,115030.0,0.39603]
[1757937813422,0.2913236,115040.0,115030.0,0.39603]
[1757937813727,0.02196,115040.0,115030.0,0.39603]
[1757937813920,0.2913236,115040.0,115030.0,0.39603]
[1757937814121,0.35927291,115040.0,115030.0,0.39603]
[1757937823732,0.22462742,115040.0,115030.0,0.39603]
[1757937824228,0.08990931,115040.0,115030.0,0.39603]
[1757937824433,0.06794931,115040.0,115030.0,0.78074811]
[1757937824634,0.75435811,115050.0,115030.0,0.78074811]
[1757937824933,0.17865469,115050.0,115040.0,0.03445]
[1757937826528,0.17965469,115050.0,115040.0,0.03445]
[1757937837737,0.04493658,115050.0,115040.0,0.55045222]
[1757937837934,0.02296,115050.0,115040.0,0.55045222]
[1757937838640,0.02296,115050.0,115040.0,0.41573411]
[1757937839035,0.02296,115050.0,115040.0,0.55045222]
[1757937839036,0.04504755,115050.0,115040.0,0.55045222]
[1757937840044,0.04504755,115050.0,115040.0,0.41573411]
[1757937841738,0.001,115050.0,115040.0,0.96045222]
[1757937841934,0.001,115050.0,115040.0,0.80045222]
[1757937845045,0.02307,115050.0,115040.0,0.66573411]
[1757937845347,0.15778811,115050.0,115040.0,0.68233411]
[1757937851039,0.15778811,115050.0,115040.0,0.41573411]
[1757937852249,0.17985916,115050.0,115040.0,0.41573411]
[1757937852453,0.15778811,115050.0,115040.0,0.41573411]
[1757937852642,0.17985574,115050.0,115040.0,0.41573411]
[1757937853948,0.15778811,115050.0,115040.0,0.41573411]
[1757937855256,0.17985186,115050.0,115040.0,0.41573411]
[1757937856959,0.04513375,115050.0,115040.0,0.41573411]
[1757937857259,0.02306375,115050.0,115040.0,0.80045222]
[1757937858270,0.04513375,115050.0,115040.0,0.80045222]
[1757937859160,0.04513375,115050.0,115040.0,0.66573411]
[1757937859361,0.02306375,115050.0,115040.0,0.66573411]
[1757937859861,0.04513375,115050.0,115040.0,0.66573411]
[1757937860459,0.02307,115050.0,115040.0,0.66573411]
[1757937861063,0.02307,115050.0,115040.0,0.80045222]
[1757937862058,0.04513334,115050.0,115040.0,0.80045222]
[1757937862361,0.02306334,115050.0,115040.0,0.80045222]
[1757937862560,0.02298012,115050.0,115040.0,0.80045222]
[1757937862962,0.04505012,115050.0,115040.0,0.93233411]
[1757937863261,0.17976823,115050.0,115040.0,0.93233411]
[1757937863465,0.04505012,115050.0,115040.0,0.93233411]
[1757937864960,0.04505012,115050.0,115040.0,1.72321411]
[1757937865149,0.17976823,115050.0,115040.0,0.93233411]
[1757937866862,0.15778811,115050.0,115040.0,0.93233411]
[1757937867260,0.17977887,115050.0,115040.0,1.72321411]
[1757937868665,0.15778811,115050.0,115040.0,0.93233411]
[1757937869664,0.15778811,115050.0,115040.0,0.68233411]
[1757937869665,0.56450115,115050.0,115040.0,0.68233411]
[1757937870067,0.42978304,115050.0,115040.0,0.68233411]
[1757937870568,0.40778811,115050.0,115040.0,0.68233411]
[1757937871971,0.42978513,115050.0,115040.0,0.68233411]
[1757937874863,0.42978513,115050.0,115040.0,0.41573411]
[1757937876671,0.57487324,115050.0,115040.0,0.40264411]
[1757937876873,0.44015513,115050.0,115040.0,0.40264411]
[1757937877075,0.57487324,115050.0,115040.0,0.40264411]
[1757937877572,0.57487324,115050.0,115040.0,0.41560411]
[1757937877573,0.42978513,115050.0,115040.0,0.41560411]
[1757937878374,0.29506702,115050.0,115040.0,0.41560411]
[1757937878667,0.42978513,115050.0,115040.0,0.41560411]
[1757937879473,0.17978513,115050.0,115040.0,0.41560411]
[1757937885774,0.31447174,115050.0,115040.0,0.41560411]
[1757937887168,1.10531174,115050.0,115040.0,0.41560411]
[1757937888275,0.04506702,115050.0,115040.0,0.41560411]
[1757937888476,1.10531174,115050.0,115040.0,0.41560411]
[1757937889780,0.31447174,115050.0,115040.0,0.41560411]
[1757937889979,1.10531174,115050.0,115040.0,0.41560411]
[1757937890979,0.97060938,115050.0,115040.0,0.41560411]
[1757937892572,0.31447174,115050.0,115040.0,0.41560411]
[1757937892776,0.97060938,115050.0,115040.0,0.41560411]
[1757937893880,0.17976938,115050.0,115040.0,0.41560411]
[1757937894079,0.02299702,115050.0,115040.0,0.68500883]
[1757937894375,0.001,115050.0,115040.0,1.09500883]
[1757937894878,0.13570236,115050.0,115040.0,1.09500883]
[1757937895380,0.13570236,115050.0,115040.0,1.75114647]
[1757937895979,0.13570236,115050.0,115040.0,1.88584883]
[1757937896180,0.001,115050.0,115040.0,1.88584883]
[1757937896380,0.001,115050.0,115040.0,1.91608883]
[1757937896583,0.001,115050.0,115040.0,1.12500883]
[1757937897080,0.001,115050.0,115040.0,1.90616883]
[1757937897481,0.13570236,115050.0,115040.0,1.90616883]
[1757937898385,0.13570236,115050.0,115040.0,1.11500883]
[1757937898588,0.13570236,115050.0,115040.0,2.17264883]
[1757937898778,0.13570236,115050.0,115040.0,2.03794647]
[1757937899985,0.13570236,115050.0,115040.0,1.85794647]
[1757937900182,0.001,115050.0,115040.0,1.99264883]
[1757937900386,0.13570236,115050.0,115040.0,1.99256883]
[1757937900776,0.13570236,115050.0,115040.0,1.85786647]
[1757937901180,0.13570236,115050.0,115040.0,1.72316411]
[1757937901487,0.13570236,115050.0,115040.0,1.85786647]
[1757937901488,0.001,115050.0,115040.0,1.85786647]
[1757937901688,0.13570236,115050.0,115040.0,1.85786647]
[1757937902687,0.13570236,115050.0,115040.0,1.72316411]
[1757937902888,0.13570236,115050.0,115040.0,1.99240883]
[1757937903394,0.001,115050.0,115040.0,1.99240883]
[1757937903585,0.13570236,115050.0,115040.0,1.99240883]
[1757937904990,0.001,115050.0,115040.0,1.99240883]
[1757937905288,0.13570236,115050.0,115040.0,1.99240883]
[1757937905892,0.001,115050.0,115040.0,1.99240883]
[1757937906087,0.13570236,115050.0,115040.0,1.99240883]
[1757937906988,0.001,115050.0,115040.0,1.20160883]
[1757937907190,0.001,115050.0,115040.0,1.35160883]
[1757937907389,0.001,115050.0,115040.0,2.15136671]
[1757937907980,0.001,115050.0,115040.0,1.35160883]
[1757937908192,0.001,115050.0,115040.0,2.14240883]
[1757937908893,0.001,115050.0,115040.0,2.1510419]
[1757937909090,0.001,115050.0,115040.0,2.0010419]
[1757937909291,0.001,115050.0,115040.0,1.3802419]
[1757937909691,0.001,115050.0,115040.0,2.1710419]
[1757937909890,0.001,115050.0,115040.0,2.0010419]
[1757937910087,0.001,115050.0,115040.0,2.1810419]
[1757937910293,0.001,115050.0,115040.0,2.1810019]
[1757937910686,0.001,115050.0,115040.0,1.3902419]
[1757937910887,0.001,115050.0,115040.0,1.20160883]
[1757937911086,0.13570236,115050.0,115040.0,1.99236883]
[1757937911287,0.001,115050.0,115040.0,1.99236883]
[1757937911487,0.001,115050.0,115040.0,0.93220411]
[1757937911686,0.13570236,115050.0,115040.0,1.99236883]
[1757937911887,0.13570236,115050.0,115040.0,1.06690647]
[1757937912091,0.13570236,115050.0,115040.0,1.85774647]
[1757937912493,0.13570236,115050.0,115040.0,1.85782647]
[1757937912787,0.13570236,115050.0,115040.0,0.68220411]
[1757937912788,0.15856236,115050.0,115040.0,0.68220411]
[1757937912992,0.40856236,115050.0,115040.0,0.68220411]
[1757937914092,0.5651544,115050.0,115040.0,0.32140411]
[1757937914284,1.3559544,115050.0,115040.0,0.05480411]
[1757937914685,1.3663244,115050.0,115040.0,0.04309411]
[1757937915295,1.3666044,115050.0,115040.0,0.04309411]
[1757937915589,1.3666444,115050.0,115040.0,0.05681411]
[1757937915790,1.3666444,115050.0,115040.0,0.04309411]
[1757937915991,1.3666444,115050.0,115040.0,0.02048411]
[1757937916797,1.3666444,115050.0,115040.0,0.04309411]
[1757937920001,1.3667644,115050.0,115040.0,0.02048411]
[1757937921407,0.5755244,115050.0,115040.0,0.04309411]
[1757937921601,1.3667644,115050.0,115040.0,0.04309411]
[1757937922698,1.3672044,115050.0,115040.0,0.04309411]
[1757937923008,0.5755244,115050.0,115040.0,0.04309411]
[1757937923304,1.3670844,115050.0,115040.0,0.04309411]
[1757937923804,0.5755244,115050.0,115040.0,0.04309411]
[1757937924207,1.09759968,115050.0,115040.0,0.04309411]
[1757937924414,1.3670044,115050.0,115040.0,0.04309411]
[1757937925210,0.5755244,115050.0,115040.0,0.04309411]
[1757937925419,1.3670044,115050.0,115040.0,0.04309411]
[1757937925716,1.3673644,115050.0,115040.0,0.04309411]
[1757937926016,1.3675244,115050.0,115040.0,0.04309411]
[1757937926617,0.5755244,115050.0,115040.0,0.04309411]
[1757937926915,1.3674844,115050.0,115040.0,0.04309411]
[1757937927216,1.3674444,115050.0,115040.0,0.04309411]
[1757937927513,0.5755244,115050.0,115040.0,0.04309411]
[1757937927712,1.3674044,115050.0,115040.0,0.04309411]
[1757937929826,1.3674044,115050.0,115040.0,0.02048411]
[1757937930023,0.5755244,115050.0,115040.0,0.02048411]
[1757937930216,0.9363244,115050.0,115030.0,0.37467]
[1757937930416,1.08400472,115040.0,115030.0,0.39606]
[1757937930719,1.15226144,115040.0,115030.0,0.39606]
[1757937931216,1.16394144,115040.0,115030.0,0.39606]
[1757937931816,0.37198144,115040.0,115030.0,0.39606]
[1757937932017,1.16458144,115040.0,115030.0,0.39606]
[1757937932918,0.36030144,115040.0,115030.0,0.39606]
[1757937933126,1.15286144,115040.0,115030.0,0.39606]
[1757937933724,1.15278144,115040.0,115030.0,0.39606]
[1757937934821,0.36030144,115040.0,115030.0,0.39606]
[1757937935024,1.15278144,115040.0,115030.0,0.39606]
[1757937936926,1.2991638,115040.0,115030.0,0.03526]
[1757937937123,0.73278144,115040.0,115030.0,0.02139]
[1757937937624,1.52498144,115040.0,115030.0,0.02139]
[1757937938524,1.52494144,115040.0,115030.0,0.02139]
[1757937939126,0.73278144,115040.0,115030.0,0.02139]
[1757937939419,0.75467894,115040.0,115030.0,0.02139]
[1757937939625,1.54683894,115040.0,115030.0,0.02139]
[1757937940124,1.52494144,115040.0,115030.0,0.02139]
[1757937940319,1.54676398,115040.0,115030.0,0.02139]
[1757937942123,0.75468398,115040.0,115030.0,0.02139]
[1757937942421,1.54664398,115040.0,115030.0,0.02139]
[1757937942631,0.75468398,115040.0,115030.0,0.02139]
[1757937942816,1.54660398,115040.0,115030.0,0.02139]
[1757937943629,0.75468398,115040.0,115030.0,0.02139]
[1757937944030,1.54652398,115040.0,115030.0,0.02139]
[1757937944228,0.75468398,115040.0,115030.0,0.02139]
[1757937944625,1.54644398,115040.0,115030.0,0.02139]
[1757937944826,0.75468398,115040.0,115030.0,0.02139]
[1757937945027,1.54644398,115040.0,115030.0,0.02139]
[1757937946424,1.54632398,115040.0,115030.0,0.02139]
[1757937946631,0.75468398,115040.0,115030.0,0.02139]
[1757937947024,1.54696398,115040.0,115030.0,0.02139]
[1757937947432,1.54698987,115040.0,115030.0,0.02139]
[1757937947835,1.41232787,115040.0,115030.0,0.02139]
[1757937948329,0.62004787,115040.0,115030.0,0.02139]
[1757937949135,1.40052787,115040.0,115030.0,0.03495]
[1757937949531,1.40052787,115040.0,115020.0,0.39473283]
[1757937949532,0.62004787,115040.0,115020.0,0.39473283]
[1757937949831,0.0226,115030.0,115020.0,0.41612283]
[1757937950037,0.94942272,115030.0,115020.0,0.41612283]
[1757937950433,0.15734272,115030.0,115020.0,0.41612283]
[1757937950734,0.95042272,115030.0,115020.0,0.41612283]
[1757937951435,0.81568,115030.0,115020.0,0.41612283]
[1757937951635,0.95042272,115030.0,115020.0,0.41612283]
[1757937952037,0.95042272,115030.0,115020.0,0.41812283]
[1757937952335,0.95042272,115030.0,115020.0,0.41912283]
[1757937952635,0.15734272,115030.0,115020.0,0.41912283]
[1757937953138,0.95066272,115030.0,115020.0,0.41912283]
[1757937954538,0.15734272,115030.0,115020.0,0.41912283]
[1757937954730,0.95074272,115030.0,115020.0,0.41912283]
[1757937957339,0.0226,115030.0,115020.0,0.41912283]
[1757937957838,0.95050272,115030.0,115020.0,0.41912283]
[1757937959636,0.81576,115030.0,115020.0,0.41912283]
[1757937960037,0.95050272,115030.0,115020.0,0.41912283]
[1757937966348,0.95050272,115030.0,115020.0,0.39906]
[1757937967744,0.15734272,115030.0,115020.0,0.39906]
[1757937967946,0.95022272,115030.0,115020.0,0.39906]
[1757937972950,0.97219521,115030.0,115020.0,0.03826]
[1757937973150,0.97956521,115030.0,115020.0,0.02439]
[1757937976349,0.97956521,115030.0,115020.0,0.02435]
[1757937976653,1.11430741,115030.0,115020.0,0.003]
[1757937977737,1.36430741,115030.0,115020.0,0.003]
[1757937978147,1.22920469,115030.0,115020.0,0.003]
[1757937980650,1.22900469,115030.0,115020.0,0.02575]
[1757937981348,1.22900469,115030.0,115020.0,0.003]
[1757937981949,1.36374741,115030.0,115020.0,0.003]
[1757937982449,1.09426197,115030.0,115020.0,0.003]
[1757937982649,1.36374741,115030.0,115020.0,0.003]
[1757937983651,1.09410197,115030.0,115020.0,0.02575]
[1757937983852,1.09402197,115030.0,115020.0,0.02575]
[1757937984053,1.22876469,115030.0,115020.0,0.02575]
[1757937984753,1.22876469,115030.0,115020.0,0.003]
[1757937987149,1.36350741,115030.0,115020.0,0.003]
[1757937987452,0.57142741,115030.0,115020.0,0.003]
[1757937988352,0.93222741,115030.0,115020.0,0.003]
[1757937993657,0.02311,115000.0,114990.0,0.39629]
[1757937993855,0.95081272,115000.0,114990.0,0.39629]
[1757937994955,0.95085272,115000.0,114990.0,0.39629]
[1757937995149,0.95081272,115000.0,114990.0,0.39629]
[1757937995353,0.15785272,115000.0,114990.0,0.39629]
[1757937995555,0.95081272,115000.0,114990.0,0.39629]
[1757937995755,0.95081272,115000.0,114990.0,0.39929]
[1757937995955,0.95081272,115000.0,114990.0,0.40329]
[1757937996155,0.96249272,115000.0,114990.0,0.40329]
[1757937996348,0.97129335,115000.0,114990.0,0.38973]
[1757937996554,1.48910615,115000.0,114990.0,0.007]
[1757937997154,0.94614615,115000.0,114990.0,0.007]
[1757937997659,1.80877907,115000.0,114990.0,0.007]
[1757937997859,1.01589907,115000.0,114990.0,0.007]
[1757937998058,1.80881907,115000.0,114990.0,0.007]
[1757937998754,1.42399635,115000.0,114990.0,0.02893]
[1757937998950,0.63115635,115000.0,114990.0,0.007]
[1757937999160,0.63115635,115000.0,114990.0,0.02693]
[1757937999353,0.63115635,115000.0,114970.0,0.36983]
[1757937999354,0.01276,114990.0,114970.0,0.36983]
[1757937999558,0.95069272,114980.0,114970.0,0.39176]
[1757937999856,0.94869272,114980.0,114970.0,0.39176]
[1757938000459,0.81407,114980.0,114970.0,0.39176]
[1757938000649,0.94881272,114980.0,114970.0,0.39476]
[1757938000851,0.15585272,114980.0,114970.0,0.39876]
[1757938001051,0.88057272,114980.0,114970.0,0.39876]
[1757938002757,0.88057272,114980.0,114970.0,0.39776]
[1757938003756,0.94857272,114980.0,114970.0,0.39776]
[1757938003963,0.02111,114980.0,114970.0,0.86945122]
[1757938004159,0.02111,114980.0,114970.0,0.78250272]
[1757938004461,0.74197272,114990.0,114980.0,0.03477]
[1757938005459,0.15785272,114990.0,114980.0,0.03477]
[1757938005663,0.95049272,114990.0,114980.0,0.03477]
[1757938006056,0.95041272,114990.0,114980.0,0.03677]
[1757938006355,0.95041272,114990.0,114980.0,0.03777]
[1757938006652,0.15785272,114990.0,114980.0,0.03777]
[1757938006854,0.95033272,114990.0,114980.0,0.03777]
[1757938007357,0.15785272,114990.0,114980.0,0.03777]
[1757938007765,0.95025272,114990.0,114980.0,0.03777]
[1757938008366,0.95029272,114990.0,114980.0,0.03777]
[1757938008962,0.95017272,114990.0,114980.0,0.03777]
[1757938009563,0.95013272,114990.0,114980.0,0.03777]
[1757938009862,0.95021414,114990.0,114980.0,0.03777]
[1757938010060,0.81539,114990.0,114980.0,0.03777]
[1757938010265,0.95017414,114990.0,114980.0,0.03777]
[1757938010762,0.17069414,114990.0,114980.0,0.02493]
[1757938010969,0.82807,114990.0,114980.0,0.02493]
[1757938011265,1.09771828,114990.0,114980.0,0.02493]
[1757938011966,0.17069414,114990.0,114980.0,0.03777]
[1757938012166,0.95013414,114990.0,114980.0,0.03777]
[1757938013368,0.15793414,114990.0,114980.0,0.03777]
[1757938013667,0.95025414,114990.0,114980.0,0.03777]
[1757938014167,0.15793414,114990.0,114980.0,0.03777]
[1757938014459,0.95021414,114990.0,114980.0,0.03777]
[1757938015060,1.08503828,114990.0,114980.0,0.03777]
[1757938015468,1.09779828,114990.0,114980.0,0.02493]
[1757938015964,0.30551828,114990.0,114980.0,0.02493]
[1757938016169,1.09763828,114990.0,114980.0,0.003]
[1757938016361,1.09763828,114990.0,114980.0,0.02551]
[1757938017365,1.86557795,114990.0,114980.0,0.003]
[1757938017566,1.73075381,114990.0,114980.0,0.003]
[1757938019366,1.86557795,114990.0,114980.0,0.002]
[1757938019863,1.73075381,114990.0,114980.0,0.002]
[1757938020169,0.03512,114980.0,114970.0,0.02251]
[1757938020367,0.32708381,114980.0,114970.0,0.02251]
[1757938021265,0.03412,114970.0,114960.0,0.4174169]
[1757938021471,1.10144828,114970.0,114960.0,0.4174169]
[1757938021869,1.10144828,114970.0,114960.0,0.4037869]
[1757938022170,0.8318,114970.0,114960.0,0.4037869]
[1757938022370,1.10144828,114970.0,114960.0,0.4037869]
[1757938022673,1.12378622,114970.0,114960.0,0.4037869]
[1757938023266,0.17995208,114970.0,114960.0,0.6674169]
[1757938023470,0.15761414,114980.0,114970.0,0.01363]
[1757938023669,0.04513983,114980.0,114970.0,0.53176414]
[1757938023869,0.04513983,114980.0,114970.0,0.69176414]
[1757938024062,0.93462414,114990.0,114970.0,0.69176414]
[1757938024265,0.84494126,114990.0,114980.0,0.03614]
[1757938024469,0.04514126,114990.0,114980.0,0.03614]
[1757938024664,0.84486126,114990.0,114980.0,0.56694]
[1757938024871,0.84482126,114990.0,114980.0,0.39694]
[1757938025173,0.04514126,114990.0,114980.0,0.39694]
[1757938025372,0.1799654,114990.0,114980.0,0.53176414]
[1757938026669,0.1819654,114990.0,114980.0,0.53176414]
[1757938027277,0.1819654,114990.0,114980.0,0.39694]
[1757938027572,0.1819654,114990.0,114980.0,0.53176414]
[1757938027774,0.1829654,114990.0,114980.0,0.39694]
[1757938028073,0.1829654,114990.0,114980.0,0.53176414]
[1757938028673,0.1829654,114990.0,114980.0,0.39694]
[1757938029371,0.1962954,114990.0,114980.0,0.39694]
[1757938029873,0.1962954,114990.0,114980.0,0.38331]
[1757938030774,0.1962954,114990.0,114980.0,0.39694]
[1757938030972,0.9825654,114990.0,114980.0,0.39694]
[1757938031174,0.1829654,114990.0,114980.0,0.39694]
[1757938031770,0.04814126,114990.0,114980.0,0.39694]
[1757938031970,0.1829654,114990.0,114980.0,0.39694]
[1757938032982,0.1829654,114990.0,114980.0,1.09658828]
[1757938032983,0.003,114990.0,114980.0,1.09658828]
[1757938033171,0.003,114990.0,114980.0,1.10658828]
[1757938033476,0.003,114990.0,114980.0,0.91658828]
[1757938033775,0.003,114990.0,114980.0,1.10658828]
[1757938035478,0.13782414,114990.0,114980.0,0.64694]
[1757938035679,0.16061414,114990.0,114980.0,0.78176414]
[1757938036575,0.02579,114990.0,114980.0,0.78176414]
[1757938036775,0.16061414,114990.0,114980.0,0.78176414]
[1757938037480,0.16061414,114990.0,114980.0,0.39694]
[1757938037682,0.17394414,114990.0,114980.0,0.39694]
[1757938037981,0.30876828,114990.0,114980.0,0.38331]
[1757938038174,0.17394414,114990.0,114980.0,0.38331]
[1757938038582,0.30876828,114990.0,114980.0,0.38331]
[1757938040181,0.02579,114990.0,114980.0,0.39694]
[1757938040381,0.16061414,114990.0,114980.0,0.39694]
[1757938040578,0.02579,114990.0,114980.0,0.39694]
[1757938040778,0.30876828,114990.0,114980.0,0.38331]
[1757938041983,0.30876828,114990.0,114980.0,0.39694]
[1757938042884,0.16061414,114990.0,114980.0,0.39694]
[1757938043583,0.17394414,114990.0,114980.0,0.38331]
[1757938043787,0.30876828,114990.0,114980.0,0.38331]
[1757938045380,0.30876828,114990.0,114980.0,0.39694]
[1757938045890,0.16061414,114990.0,114980.0,0.39694]
[1757938046584,0.03634,114980.0,114970.0,0.39734]
[1757938046985,0.30598828,114980.0,114970.0,0.39734]
[1757938047186,0.29212828,114980.0,114970.0,0.39734]
[1757938052584,0.30598828,114980.0,114970.0,0.39734]
[1757938053185,0.30598828,114980.0,114970.0,0.38359]